lending/lending_fUSD_20240622
["ID","MTS","AMOUNT","RATE_DAILY","PERIOD"]
[330151267,1719067841738,-354.23,0.00018055,2]
[330151268,1719067841747,-150.0,0.00018055,2]
[330151269,1719067841756,-150.0,0.00018055,2]
[330151270,1719067841766,-150.0,0.00018055,2]
[330151271,1719067841777,-164.57,0.00018055,2]
[330151272,1719067841787,-150.0,0.00018055,2]
[330151273,1719067841798,-150.0,0.00018055,2]
[330151274,1719067841807,-150.0,0.00018055,2]
[330151275,1719067841818,-164.57,0.00018055,2]
[330151276,1719067841829,-150.0,0.00018055,2]
[330151277,1719067841838,-423.6,0.00018055,2]
[330151278,1719067841847,-527.57,0.00018055,2]
[330151279,1719067841856,-150.0,0.00018055,2]
[330151280,1719067841865,-150.0,0.00018055,2]
[330151281,1719067841874,-354.23,0.00018055,2]
[330151282,1719067841883,-422.86,0.00018055,2]
[330151283,1719067841892,-150.0,0.00018055,2]
[330151284,1719067841907,-150.0,0.00018055,2]
[330151285,1719067841916,-527.57,0.00018055,2]
[330151286,1719067841925,-354.23,0.00018055,2]
[330151287,1719067841936,-164.57,0.00018055,2]
[330151288,1719067841947,-150.0,0.00018055,2]
[330151289,1719067841957,-150.0,0.00018055,2]
[330151290,1719067841966,-150.0,0.00018055,2]
[330151291,1719067841976,-527.57,0.00018055,2]
[330151292,1719067841987,-150.0,0.00018055,2]
[330151293,1719067841997,-257.46,0.00018055,2]
[330151294,1719067842007,-164.57,0.00018055,2]
[330151295,1719067842016,-354.23,0.00018055,2]
[330151296,1719067842025,-163.93,0.00018055,2]
[330151297,1719067842035,-150.0,0.00018055,2]
[330151298,1719067842044,-302.2,0.00018055,2]
[330151299,1719067842054,-346.2,0.00018055,2]
[330151300,1719067842063,-425.25,0.00018055,2]
[330151301,1719067842072,-151.36,0.00018055,2]
[330151302,1719067842084,-155.53838555,0.00018182,2]
[330151303,1719067842094,-157.86,0.00018313,2]
[330151304,1719067842103,-345.05699349,0.00018324,2]
[330151305,1719067842112,-8611.12952816,0.00018434,2]
[330151306,1719067842124,-906.10254361,0.00018439,2]
[330151307,1719067842134,-167.42,0.00018444,2]
[330151308,1719067842143,-15604.65311919,0.00018532,2]
[330151309,1719067842152,-504.64,0.00018544,2]
[330151310,1719067842161,-301.13,0.00018603,2]
[330151311,1719067842170,-1236.00368254,0.00018713,2]
[330151312,1719067842180,-1000.0,0.00018816,2]
[330151313,1719067842189,-541.27718312,0.00018888,2]
[330151314,1719067842198,-1875.84006657,0.00018888,2]
[330151315,1719067842208,-345.05699349,0.00018895,2]
[330151316,1719067842217,-668.244851,0.00018904,2]
[330151317,1719067842227,-323.0,0.0001907,2]
[330151318,1719067842236,-533.0,0.0001907,2]
[330151319,1719067842247,-258.55511764,0.0001911,2]
[330151320,1719067842257,-3044.85,0.00019131,2]
[330151321,1719067842266,-190.5818645,0.00019138,2]
[330151322,1719067842275,-524.33458217,0.00019178,2]
[330151323,1719067842284,-500.0,0.00019178,2]
[330151324,1719067842294,-463.10380917,0.00019178,2]
[330151325,1719067842304,-424.59617181,0.00019178,2]
[330151326,1719067842314,-500.0,0.00019178,2]
[330151327,1719067842323,-500.0,0.00019178,2]
[330151328,1719067842334,-250.0,0.00019178,2]
[330151329,1719067842342,-518.0,0.00019178,2]
[330151330,1719067842352,-15604.65311919,0.00019258,2]
[330151331,1719067842363,-8611.12952816,0.00019326,2]
[330151332,1719067842372,-906.10254361,0.0001933,2]
[330151333,1719067842382,-1285.40729279,0.00019333,2]
[330151334,1719067842391,-345.05699349,0.00019466,2]
[330151335,1719067842401,-1236.00368254,0.00019669,2]
[330151336,1719067842411,-157.773896,0.00019686,2]
[330151337,1719067842421,-668.244851,0.00019726,2]
[330151338,1719067842431,-151.31,0.0001989,2]
[330151339,1719067842441,-151.31,0.0001989,2]
[330151340,1719067842450,-151.31,0.0001989,2]
[330151341,1719067842461,-354819.2917297,0.000199,2]
[330151342,1719067842472,-1826.368,0.00019919,2]
[330151343,1719067842481,-1654.0,0.00019919,2]
[330151344,1719067842490,-1276.006,0.00019919,2]
[330151345,1719067842499,-359.0,0.00019919,2]
[330151346,1719067842509,-462.693,0.00019919,2]
[330151347,1719067842518,-167.317,0.00019919,2]
[330151348,1719067842529,-812.0,0.00019919,2]
[330151349,1719067842539,-681.088,0.00019919,2]
[330151350,1719067842548,-445.845,0.00019919,2]
[330151351,1719067842557,-153.554,0.00019919,2]
[330151352,1719067842567,-2418.631,0.00019919,2]
[330151353,1719067842576,-1308.092,0.00019919,2]
[330151354,1719067842586,-3209.264,0.00019919,2]
[330151355,1719067842596,-548.721,0.00019919,2]
[330151356,1719067842605,-1989.314,0.00019919,2]
[330151357,1719067842615,-290.0,0.00019919,2]
[330151358,1719067842626,-38152.0,0.00019919,2]
[330151359,1719067842636,-150.0,0.00019919,2]
[330151360,1719067842645,-5798.0,0.00019919,2]
[330151361,1719067842655,-213.0,0.00019919,2]
[330151362,1719067842664,-1196.0,0.00019919,2]
[330151363,1719067842673,-162.0,0.00019919,2]
[330151364,1719067842682,-265.0,0.00019919,2]
[330151365,1719067842692,-226.077,0.00019919,2]
[330151366,1719067842701,-255.3,0.00019919,2]
[330151367,1719067842710,-162.694,0.00019919,2]
[330151368,1719067842720,-5164.0,0.00019919,2]
[330151369,1719067842729,-195.767,0.00019919,2]
[330151370,1719067842739,-152.729,0.00019919,2]
[330151371,1719067842748,-278.3,0.00019919,2]
[330151372,1719067842757,-260.285,0.00019919,2]
[330151373,1719067842767,-1660.0,0.00019919,2]
[330151374,1719067842776,-159.288,0.00019919,2]
[330151375,1719067842786,-237.716,0.00019919,2]
[330151376,1719067842795,-1068.0,0.00019919,2]
[330151377,1719067842805,-15604.65311919,0.00019985,2]
[330151378,1719067842815,-155.05287501,0.0002,2]
[330151379,1719067842824,-500.5,0.0002,2]
[330151380,1719067842835,-5775.09736422,0.0002,7]
[330151381,1719067842844,-824.09617178,0.0002,2]
[330151382,1719067842854,-2566.92692,0.0002,2]
[330151383,1719067842864,-159.40130325,0.0002,2]
[330151384,1719067842874,-155.0,0.0002,2]
[330151385,1719067842883,-345.05699349,0.00020036,2]
[330151386,1719067842891,-177.74,0.00020171,2]
[330151387,1719067842902,-8611.12952816,0.00020217,2]
[330151388,1719067842916,-906.10254361,0.0002022,2]
[330151389,1719067842926,-169.7347945,0.00020227,2]
[330151390,1719067842935,-151.0,0.00020334,2]
[330151391,1719067842945,-1000.0,0.00020527,2]
[330151392,1719067842956,-668.244851,0.00020548,2]
[330151393,1719067842967,-1272.90615694,0.00020566,2]
[330151394,1719067842976,-1017.0,0.000206,2]
[330151395,1719067842987,-157.86,0.00020602,2]
[330151396,1719067842996,-345.05699349,0.00020607,2]
[330151397,1719067843005,-1236.00368254,0.00020624,2]
[330151398,1719067843015,-248.117,0.00020629,2]
[330151399,1719067843024,-151.122,0.00020629,2]
[330151400,1719067843033,-168.854,0.00020629,2]
[330151401,1719067843043,-248.162,0.00020629,2]
[330151402,1719067843052,-323.0,0.0002066,2]
[330151403,1719067843062,-533.0,0.0002066,2]
[330151404,1719067843071,-15604.65311919,0.00020711,2]
[330151405,1719067843083,-151.0,0.00020767,2]
[330151406,1719067843093,-4330.51916219,0.00020775,2]
[330151407,1719067843102,-202990.532621,0.000208,3]
[330151408,1719067843111,-504.64,0.00020808,2]
[330151409,1719067843121,-233.680635,0.00020889,2]
[330151410,1719067843130,-151.0,0.00020899,2]
[330151411,1719067843139,-151.0,0.00020899,2]
[330151412,1719067843149,-151.0,0.00020899,2]
[330151413,1719067843158,-151.0,0.00020899,2]
[330151414,1719067843167,-151.0,0.00020899,2]
[330151415,1719067843177,-151.0,0.00020899,2]
[330151416,1719067843187,-151.0,0.00020899,2]
[330151417,1719067843196,-151.0,0.00020899,2]
[330151418,1719067843205,-151.0,0.00020899,2]
[330151419,1719067843214,-151.0,0.00020899,2]
[330151420,1719067843223,-151.0,0.00020899,2]
[330151421,1719067843233,-151.0,0.00020899,2]
[330151422,1719067843242,-153.176636,0.00020899,2]
[330151423,1719067843251,-412.216368,0.00020899,2]
[330151424,1719067843260,-412.216368,0.00020899,2]
[330151425,1719067843269,-151.0,0.000209,2]
[330151426,1719067843278,-151.0,0.000209,2]
[330151427,1719067843288,-151.0,0.000209,2]
[330151428,1719067843297,-151.0,0.000209,2]
[330151429,1719067843307,-151.0,0.000209,2]
[330151430,1719067843316,-156.569985,0.000209,2]
[330151431,1719067843325,-391.000392,0.000209,2]
[330151434,1719067843336,-151.0,0.000209,2]
[330151438,1719067843345,-151.0,0.000209,2]
[330151440,1719067843355,-151.0,0.000209,2]
[330151442,1719067843364,-151.0,0.000209,2]
[330151443,1719067843373,-151.0,0.000209,2]
[330151444,1719067843383,-151.0,0.000209,2]
[330151445,1719067843392,-151.0,0.000209,2]
[330151446,1719067843401,-151.0,0.000209,2]
[330151447,1719067843410,-151.0,0.000209,2]
[330151448,1719067843420,-151.0,0.000209,2]
[330151449,1719067843429,-151.0,0.000209,2]
[330151450,1719067843438,-222.946974,0.000209,2]
[330151451,1719067843447,-151.0,0.000209,2]
[330151452,1719067843456,-412.216368,0.000209,2]
[330151453,1719067843465,-412.216368,0.000209,2]
[330151454,1719067843474,-151.0,0.000209,2]
[330151455,1719067843484,-151.0,0.000209,2]
[330151456,1719067843493,-160.159633,0.000209,2]
[330151457,1719067843502,-151.0,0.000209,2]
[330151458,1719067843511,-151.0,0.000209,2]
[330151459,1719067843520,-151.0,0.000209,2]
[330151460,1719067843530,-151.0,0.000209,2]
[330151461,1719067843539,-151.0,0.000209,2]
[330151462,1719067843548,-151.0,0.000209,2]
[330151463,1719067843557,-151.0,0.000209,2]
[330151464,1719067843567,-151.0,0.000209,2]
[330151465,1719067843576,-151.0,0.000209,2]
[330151466,1719067843586,-233.71732,0.000209,2]
[330151467,1719067843596,-233.71732,0.000209,2]
[330151468,1719067843605,-151.0,0.000209,2]
[330151469,1719067843615,-151.0,0.000209,2]
[330151470,1719067843625,-151.0,0.000209,2]
[330151471,1719067843634,-151.0,0.000209,2]
[330151472,1719067843643,-151.0,0.000209,2]
[330151473,1719067843653,-257.878739,0.000209,2]
[330151474,1719067843662,-217.11669,0.000209,2]
[330151475,1719067843671,-257.878739,0.000209,2]
[330151476,1719067843680,-155.948775,0.000209,2]
[330151477,1719067843690,-554.926522,0.000209,2]
[330151478,1719067843700,-217.11669,0.000209,2]
[330151479,1719067843709,-167.566695,0.000209,2]
[330151480,1719067843718,-155.948775,0.000209,2]
[330151481,1719067843728,-554.926522,0.000209,2]
[330151482,1719067843738,-151.0,0.000209,2]
[330151483,1719067843748,-167.566695,0.000209,2]
[330151484,1719067843758,-151.0,0.000209,2]
[330151485,1719067843768,-151.0,0.000209,2]
[330151486,1719067843777,-352.104306,0.000209,2]
[330151487,1719067843787,-352.104306,0.000209,2]
[330151488,1719067843797,-151.0,0.000209,2]
[330151489,1719067843807,-151.0,0.000209,2]
[330151490,1719067843816,-182.922256,0.000209,2]
[330151491,1719067843826,-151.0,0.000209,2]
[330151493,1719067843839,-457.907652,0.000209,2]
[330151495,1719067843848,-182.922256,0.000209,2]
[330151496,1719067843861,-151.0,0.000209,2]
[330151499,1719067843870,-192.702868,0.000209,2]
[330151500,1719067843880,-457.907652,0.000209,2]
[330151502,1719067843889,-192.702868,0.000209,2]
[330151504,1719067843899,-151.0,0.000209,2]
[330151506,1719067843912,-151.0,0.000209,2]
[330151508,1719067843922,-151.0,0.000209,2]
[330151510,1719067843932,-443.52344,0.000209,2]
[330151512,1719067843942,-443.52344,0.000209,2]
[330151513,1719067843953,-151.0,0.000209,2]
[330151514,1719067843962,-151.0,0.000209,2]
[330151515,1719067843971,-151.0,0.000209,2]
[330151516,1719067843980,-188.70805,0.000209,2]
[330151517,1719067843991,-151.0,0.000209,2]
[330151518,1719067844001,-151.0,0.000209,2]
[330151519,1719067844011,-151.0,0.000209,2]
[330151520,1719067844021,-151.0,0.000209,2]
[330151521,1719067844030,-350.56308,0.000209,2]
[330151522,1719067844039,-221.054792,0.000209,2]
[330151523,1719067844050,-350.56308,0.000209,2]
[330151524,1719067844059,-221.054792,0.000209,2]
[330151525,1719067844069,-151.0,0.000209,2]
[330151526,1719067844079,-187.074069,0.000209,2]
[330151527,1719067844089,-854.073436,0.000209,2]
[330151528,1719067844098,-151.0,0.000209,2]
[330151529,1719067844107,-854.073436,0.000209,2]
[330151530,1719067844117,-151.0,0.000209,2]
[330151531,1719067844126,-151.0,0.000209,2]
[330151532,1719067844137,-151.0,0.000209,2]
[330151533,1719067844146,-151.0,0.000209,2]
[330151534,1719067844156,-151.0,0.000209,2]
[330151536,1719067844166,-151.0,0.000209,2]
[330151538,1719067844176,-151.0,0.000209,2]
[330151540,1719067844187,-151.0,0.000209,2]
[330151541,1719067844197,-151.0,0.000209,2]
[330151542,1719067844207,-1436.457663,0.000209,2]
[330151543,1719067844217,-151.0,0.000209,2]
[330151544,1719067844226,-1436.457663,0.000209,2]
[330151545,1719067844236,-151.0,0.000209,2]
[330151546,1719067844246,-143591.510422,0.000209,3]
[330151547,1719067844257,-151.0,0.000209,2]
[330151548,1719067844267,-151.0,0.000209,2]
[330151549,1719067844277,-151.0,0.000209,2]
[330151550,1719067844287,-151.0,0.000209,2]
[330151551,1719067844298,-151.0,0.000209,2]
[330151552,1719067844308,-151.0,0.000209,2]
[330151553,1719067844318,-514.314286,0.000209,2]
[330151554,1719067844328,-151.0,0.000209,2]
[330151555,1719067844339,-514.314286,0.000209,2]
[330151556,1719067844348,-151.0,0.000209,2]
[330151557,1719067844357,-3375.696479,0.000209,2]
[330151558,1719067844367,-151.0,0.000209,2]
[330151559,1719067844377,-1332.680326,0.000209,2]
[330151560,1719067844386,-151.0,0.000209,2]
[330151561,1719067844395,-3375.696479,0.000209,2]
[330151562,1719067844405,-1332.680326,0.000209,2]
[330151563,1719067844416,-151.0,0.000209,2]
[330151564,1719067844429,-151.0,0.000209,2]
[330151565,1719067844439,-151.0,0.000209,2]
[330151566,1719067844449,-254.807645,0.000209,2]
[330151567,1719067844458,-489.137056,0.000209,2]
[330151568,1719067844467,-151.0,0.000209,2]
[330151569,1719067844477,-489.137056,0.000209,2]
[330151570,1719067844487,-151.0,0.000209,2]
[330151571,1719067844497,-519.105013,0.000209,2]
[330151572,1719067844507,-519.105013,0.000209,2]
[330151573,1719067844517,-151.0,0.000209,2]
[330151574,1719067844526,-151.0,0.000209,2]
[330151575,1719067844536,-560.752463,0.000209,2]
[330151576,1719067844547,-151.0,0.000209,2]
[330151577,1719067844558,-151.0,0.000209,2]
[330151578,1719067844567,-560.752463,0.000209,2]
[330151579,1719067844577,-151.0,0.000209,2]
[330151580,1719067844589,-151.0,0.000209,2]
[330151581,1719067844599,-30000.0,0.00021,3]
[330151582,1719067844609,-1250.0,0.00021,2]
[330151583,1719067844619,-151.0,0.00021,2]
[330151584,1719067844629,-151.0,0.00021,2]
[330151585,1719067844640,-151.0,0.00021,2]
[330151586,1719067844650,-151.0,0.00021,2]
[330151587,1719067844661,-151.0,0.00021,2]
[330151588,1719067844671,-151.0,0.00021,2]
[330151589,1719067844680,-388.015623,0.00021,2]
[330151590,1719067844690,-151.542705,0.00021,2]
[330151591,1719067844700,-388.015623,0.00021,2]
[330151592,1719067844710,-400.372559,0.00021,2]
[330151593,1719067844720,-151.0,0.00021,2]
[330151594,1719067844730,-151.0,0.00021,2]
[330151595,1719067844740,-400.372559,0.00021,2]
[330151596,1719067844750,-151.0,0.00021,2]
[330151597,1719067844759,-151.0,0.00021,2]
[330151598,1719067844769,-151.186028,0.00021,2]
[330151599,1719067844779,-151.0,0.00021,2]
[330151600,1719067844789,-151.23919,0.00021,2]
[330151601,1719067844799,-151.0,0.00021,2]
[330151602,1719067844809,-151.0,0.00021,2]
[330151603,1719067844819,-500.0,0.00021028,2]
[330151604,1719067844830,-500.0,0.00021029,2]
[330151605,1719067844840,-200.0,0.00021029,2]
[330151606,1719067844849,-22995.25648185,0.0002107,2]
[330151607,1719067844859,-151.0,0.0002107,2]
[330151609,1719067844869,-151.0,0.0002107,2]
[330151610,1719067844878,-176.54092728,0.000211,2]
[330151611,1719067844888,-150.0,0.000211,3]
[330151612,1719067844898,-8611.12952816,0.00021108,2]
[330151614,1719067844911,-906.10254361,0.0002111,2]
[330151615,1719067844920,-345.05699349,0.00021178,2]
[330151616,1719067844930,-997715.99257313,0.000212,4]
[330151617,1719067844942,-180.0,0.000212,3]
[330151618,1719067844951,-500.0,0.000212,2]
[330151619,1719067844961,-500.0,0.000212,2]
[330151620,1719067844971,-500.0,0.000212,2]
[330151621,1719067844981,-500.0,0.000212,2]
[330151622,1719067844993,-500.0,0.000212,2]
[330151623,1719067845003,-500.0,0.000212,2]
[330151624,1719067845013,-500.0,0.000212,2]
[330151625,1719067845023,-806.0,0.000212,2]
[330151626,1719067845033,-490.0,0.000212,3]
[330151627,1719067845044,-490.0,0.000212,3]
[330151628,1719067845054,-190.0,0.000212,3]
[330151629,1719067845063,-323.0,0.000212,2]
[330151630,1719067845074,-323.0,0.000212,2]
[330151631,1719067845084,-323.0,0.000212,2]
[330151632,1719067845094,-323.0,0.000212,2]
[330151633,1719067845104,-323.0,0.000212,2]
[330151634,1719067845115,-323.0,0.000212,2]
[330151635,1719067845125,-323.0,0.000212,2]
[330151636,1719067845136,-323.0,0.000212,2]
[330151637,1719067845146,-323.0,0.000212,2]
[330151638,1719067845156,-323.0,0.000212,2]
[330151639,1719067845166,-323.0,0.000212,2]
[330151640,1719067845176,-323.0,0.000212,2]
[330151641,1719067845186,-323.0,0.000212,2]
[330151642,1719067845196,-323.0,0.000212,2]
[330151643,1719067845206,-533.0,0.000212,2]
[330151644,1719067845217,-533.0,0.000212,2]
[330151645,1719067845228,-533.0,0.000212,2]
[330151646,1719067845237,-533.0,0.000212,2]
[330151647,1719067845247,-533.0,0.000212,2]
[330151648,1719067845257,-533.0,0.000212,2]
[330151649,1719067845267,-533.0,0.000212,2]
[330151650,1719067845277,-533.0,0.000212,2]
[330151651,1719067845287,-533.0,0.000212,2]
[330151652,1719067845298,-533.0,0.000212,2]
[330151653,1719067845308,-533.0,0.000212,2]
[330151654,1719067845319,-533.0,0.000212,2]
[330151655,1719067845329,-533.0,0.000212,2]
[330151656,1719067845340,-533.0,0.000212,2]
[330151657,1719067845349,-151.0,0.000212,2]
[330151658,1719067845360,-151.0,0.000212,2]
[330151659,1719067845370,-151.0,0.000212,2]
[330151660,1719067845381,-151.0,0.000212,2]
[330151661,1719067845391,-151.0,0.000212,2]
[330151662,1719067845401,-151.0,0.000212,2]
[330151663,1719067845411,-298.0,0.000212,2]
[330151664,1719067845421,-151.0,0.000212,2]
[330151665,1719067845431,-151.0,0.000212,2]
[330151666,1719067845441,-151.0,0.000212,2]
[330151667,1719067845451,-153.193925,0.000212,2]
[330151668,1719067845462,-151.0,0.000212,2]
[330151669,1719067845472,-151.0,0.000212,2]
[330151670,1719067845481,-151.0,0.000212,2]
[330151671,1719067845491,-151.0,0.000212,2]
[330151672,1719067845501,-151.0,0.000212,2]
[330151673,1719067845511,-151.0,0.000212,2]
[330151674,1719067845521,-151.0,0.000212,2]
[330151675,1719067845531,-391.000392,0.000212,2]
[330151676,1719067845541,-151.0,0.000212,2]
[330151677,1719067845551,-151.0,0.000212,2]
[330151678,1719067845562,-151.0,0.000212,2]
[330151679,1719067845572,-151.0,0.000212,2]
[330151680,1719067845582,-151.0,0.000212,2]
[330151681,1719067845592,-151.0,0.000212,2]
[330151682,1719067845603,-151.0,0.000212,2]
[330151683,1719067845613,-151.0,0.000212,2]
[330151684,1719067845623,-151.0,0.000212,2]
[330151685,1719067845632,-151.0,0.000212,2]
[330151686,1719067845642,-151.0,0.000212,2]
[330151687,1719067845652,-272.32492983,0.000212,2]
[330151688,1719067845662,-412.216368,0.000212,2]
[330151689,1719067845672,-412.216368,0.000212,2]
[330151690,1719067845682,-151.0,0.000212,2]
[330151691,1719067845692,-151.0,0.000212,2]
[330151692,1719067845703,-151.0,0.000212,2]
[330151693,1719067845713,-151.0,0.000212,2]
[330151694,1719067845723,-388.015623,0.000212,2]
[330151695,1719067845733,-388.015623,0.000212,2]
[330151696,1719067845743,-400.372559,0.000212,2]
[330151697,1719067845753,-151.0,0.000212,2]
[330151698,1719067845763,-151.0,0.000212,2]
[330151699,1719067845773,-151.0,0.000212,2]
[330151700,1719067845783,-400.372559,0.000212,2]
[330151701,1719067845794,-151.0,0.000212,2]
[330151702,1719067845804,-152.971869,0.000212,2]
[330151703,1719067845814,-151.0,0.000212,2]
[330151704,1719067845824,-151.0,0.000212,2]
[330151705,1719067845836,-151.528489,0.000212,2]
[330151706,1719067845846,-158.228047,0.000212,2]
[330151707,1719067845857,-151.0,0.000212,2]
[330151708,1719067845867,-151.0,0.000212,2]
[330151709,1719067845877,-151.0,0.000212,2]
[330151710,1719067845886,-233.71732,0.000212,2]
[330151711,1719067845896,-233.71732,0.000212,2]
[330151712,1719067845911,-151.0,0.000212,2]
[330151713,1719067845921,-151.0,0.000212,2]
[330151714,1719067845931,-151.0,0.000212,2]
[330151715,1719067845942,-151.0,0.000212,2]
[330151716,1719067845955,-151.0,0.000212,2]
[330151717,1719067845965,-257.878739,0.000212,2]
[330151718,1719067845974,-217.11669,0.000212,2]
[330151719,1719067845984,-257.878739,0.000212,2]
[330151720,1719067845996,-155.948775,0.000212,2]
[330151721,1719067846006,-554.926522,0.000212,2]
[330151722,1719067846015,-217.11669,0.000212,2]
[330151723,1719067846025,-167.566695,0.000212,2]
[330151724,1719067846035,-155.948775,0.000212,2]
[330151725,1719067846045,-554.926522,0.000212,2]
[330151726,1719067846055,-167.566695,0.000212,2]
[330151727,1719067846065,-980.0,0.000212,3]
[330151728,1719067846075,-490.0,0.000212,3]
[330151729,1719067846090,-151.0,0.000212,2]
[330151730,1719067846100,-151.0,0.000212,2]
[330151731,1719067846109,-352.104306,0.000212,2]
[330151732,1719067846119,-352.104306,0.000212,2]
[330151733,1719067846130,-151.0,0.000212,2]
[330151734,1719067846140,-182.922256,0.000212,2]
[330151735,1719067846150,-151.0,0.000212,2]
[330151736,1719067846159,-457.907652,0.000212,2]
[330151737,1719067846169,-182.922256,0.000212,2]
[330151738,1719067846179,-151.0,0.000212,2]
[330151739,1719067846189,-192.702868,0.000212,2]
[330151740,1719067846198,-457.907652,0.000212,2]
[330151741,1719067846208,-192.702868,0.000212,2]
[330151742,1719067846217,-151.0,0.000212,2]
[330151743,1719067846227,-151.0,0.000212,2]
[330151744,1719067846238,-203.496368,0.000212,2]
[330151745,1719067846248,-443.52344,0.000212,2]
[330151746,1719067846257,-443.52344,0.000212,2]
[330151747,1719067846267,-151.0,0.000212,2]
[330151748,1719067846277,-151.0,0.000212,2]
[330151749,1719067846287,-151.0,0.000212,2]
[330151750,1719067846297,-151.0,0.000212,2]
[330151751,1719067846306,-151.0,0.000212,2]
[330151752,1719067846317,-151.0,0.000212,2]
[330151753,1719067846327,-151.0,0.000212,2]
[330151754,1719067846340,-350.56308,0.000212,2]
[330151755,1719067846350,-221.054792,0.000212,2]
[330151756,1719067846359,-350.56308,0.000212,2]
[330151757,1719067846371,-221.054792,0.000212,2]
[330151770,1719067846626,-151.257747,0.000212,2]
[330151771,1719067846672,-854.073436,0.000212,2]
[330151772,1719067846682,-151.0,0.000212,2]
[330151773,1719067846692,-854.073436,0.000212,2]
[330151774,1719067846702,-151.0,0.000212,2]
[330151775,1719067846711,-151.0,0.000212,2]
[330151776,1719067846721,-151.0,0.000212,2]
[330151777,1719067846732,-151.0,0.000212,2]
[330151778,1719067846742,-151.0,0.000212,2]
[330151779,1719067846752,-151.0,0.000212,2]
[330151780,1719067846762,-151.0,0.000212,2]
[330151781,1719067846771,-151.0,0.000212,2]
[330151782,1719067846781,-151.0,0.000212,2]
[330151783,1719067846791,-1436.457663,0.000212,2]
[330151784,1719067846800,-1436.457663,0.000212,2]
[330151785,1719067846809,-151.0,0.000212,2]
[330151786,1719067846819,-151.0,0.000212,2]
[330151787,1719067846829,-151.0,0.000212,2]
[330151788,1719067846840,-152.129061,0.000212,2]
[330151789,1719067846850,-151.0,0.000212,2]
[330151790,1719067846859,-151.0,0.000212,2]
[330151791,1719067846869,-151.0,0.000212,2]
[330151792,1719067846879,-514.314286,0.000212,2]
[330151793,1719067846888,-151.0,0.000212,2]
[330151794,1719067846911,-514.314286,0.000212,2]
[330151795,1719067846923,-151.0,0.000212,2]
[330151796,1719067846934,-3375.696479,0.000212,2]
[330151797,1719067846944,-151.0,0.000212,2]
[330151798,1719067846956,-1332.680326,0.000212,2]
[330151799,1719067846967,-151.0,0.000212,2]
[330151800,1719067846977,-3375.696479,0.000212,2]